[Event "*** Titled Tuesday Blitz"]
[Site "Chess.com"]
[Date "2020.04.28"]
[Round "3"]
[White "MFguimaraes"]
[Black "Bagirova"]
[Result "0-1"]
[WhiteElo "2402"]
[BlackElo "2220"]
[TimeControl "180+1"]
[EndTime "10:30:16 PDT"]
[Termination "Bagirova won by resignation"]

1. e4 {[%clk 0:03:00.9]} 1... c5 {[%clk 0:02:58.5]} 2. Nf3 {[%clk 0:03:01.1]}
2... d6 {[%clk 0:02:57.2]} 3. d4 {[%clk 0:02:58.5]} 3... cxd4 {[%clk 0:02:57.5]}
4. Nxd4 {[%clk 0:02:59.4]} 4... Nf6 {[%clk 0:02:57.4]} 5. Nc3 {[%clk 0:03:00]}
5... a6 {[%clk 0:02:57.8]} 6. g3 {[%clk 0:03:00.6]} 6... e6 {[%clk 0:02:58]} 7.
Bg2 {[%clk 0:03:00.5]} 7... g6 {[%clk 0:02:57.6]} 8. O-O {[%clk 0:02:59.9]} 8...
Bg7 {[%clk 0:02:58]} 9. a4 {[%clk 0:02:59.6]} 9... O-O {[%clk 0:02:58.3]} 10.
Be3 {[%clk 0:02:56.8]} 10... Qc7 {[%clk 0:02:58.2]} 11. Qd3 {[%clk 0:02:53.1]}
11... Nc6 {[%clk 0:02:58.2]} 12. Qc4 {[%clk 0:02:52.6]} 12... Ng4 {[%clk
0:02:50.6]} 13. Nxc6 {[%clk 0:02:38.8]} 13... Nxe3 {[%clk 0:02:40.6]} 14. fxe3
{[%clk 0:02:39.7]} 14... bxc6 {[%clk 0:02:40.6]} 15. Ra3 {[%clk 0:02:29.5]}
15... Qb6 {[%clk 0:02:37.5]} 16. Qd3 {[%clk 0:02:23.6]} 16... d5 {[%clk
0:02:22.7]} 17. a5 {[%clk 0:02:23.1]} 17... Qc5 {[%clk 0:02:16.4]} 18. exd5
{[%clk 0:02:14.3]} 18... cxd5 {[%clk 0:02:14.5]} 19. Kh1 {[%clk 0:01:59.2]}
19... Bd7 {[%clk 0:02:05.8]} 20. e4 {[%clk 0:01:23]} 20... d4 {[%clk 0:01:58]}
21. Ne2 {[%clk 0:01:09]} 21... Bb5 {[%clk 0:01:57.2]} 22. Qd2 {[%clk 0:01:09.1]}
22... Rac8 {[%clk 0:01:48.4]} 23. Rc1 {[%clk 0:01:05.8]} 23... h5 {[%clk
0:01:35.6]} 24. c4 {[%clk 0:01:05.9]} 24... Bxc4 {[%clk 0:01:22.3]} 25. Ra4
{[%clk 0:00:59.8]} 25... Qb5 {[%clk 0:01:14.5]} 26. Rb4 {[%clk 0:00:45.9]} 26...
Qxa5 {[%clk 0:01:10.2]} 27. Nf4 {[%clk 0:00:39.4]} 27... Bb5 {[%clk 0:01:01.7]}
28. Rd1 {[%clk 0:00:30.7]} 28... Kh7 {[%clk 0:00:50.9]} 29. Rxd4 {[%clk
0:00:30.2]} 29... Qxd2 {[%clk 0:00:44.6]} 30. R4xd2 {[%clk 0:00:31.1]} 30... a5
{[%clk 0:00:37.6]} 31. Ra1 {[%clk 0:00:28.7]} 31... a4 {[%clk 0:00:37]} 32. h4
{[%clk 0:00:28.7]} 32... Rfd8 {[%clk 0:00:30.2]} 33. Rad1 {[%clk 0:00:26.4]}
33... Rxd2 {[%clk 0:00:29.5]} 34. Rxd2 {[%clk 0:00:27.3]} 34... Rc1+ {[%clk
0:00:28.3]} 35. Kh2 {[%clk 0:00:26.9]} 35... Rb1 {[%clk 0:00:28.6]} 36. Nd3
{[%clk 0:00:24.6]} 36... Bxd3 {[%clk 0:00:27]} 37. Rxd3 {[%clk 0:00:25.5]} 37...
Rxb2 {[%clk 0:00:27.3]} 38. Kh3 {[%clk 0:00:25.9]} 38... Ra2 {[%clk 0:00:26.8]}
39. Rd7 {[%clk 0:00:25.8]} 39... Kg8 {[%clk 0:00:26]} 40. Rd8+ {[%clk
0:00:26.2]} 40... Kh7 {[%clk 0:00:24.2]} 41. Rd7 {[%clk 0:00:25.4]} 41... f5
{[%clk 0:00:24]} 42. exf5 {[%clk 0:00:24.2]} 42... exf5 {[%clk 0:00:23.7]} 43.
Bd5 {[%clk 0:00:22]} 43... Ra3 {[%clk 0:00:23.4]} 44. Ra7 {[%clk 0:00:16.1]}
44... Ra1 {[%clk 0:00:22.6]} 45. Bf7 {[%clk 0:00:14.3]} 45... a3 {[%clk
0:00:18.1]} 46. Ra6 {[%clk 0:00:14.6]} 46... g5 {[%clk 0:00:17]} 47. Bg6+ {[%clk
0:00:14.5]} 47... Kg8 {[%clk 0:00:15.3]} 48. hxg5 {[%clk 0:00:14.2]} 48... a2
{[%clk 0:00:14.4]} 49. Ra8+ {[%clk 0:00:13.3]} 49... Bf8 {[%clk 0:00:13.6]} 50.
Kg2 {[%clk 0:00:13.5]} 50... Kg7 {[%clk 0:00:08.7]} 51. Bxf5 {[%clk 0:00:13.7]}
51... Bc5 {[%clk 0:00:07.3]} 52. Be6 {[%clk 0:00:11.6]} 52... Rg1+ {[%clk
0:00:06.7]} 53. Kh2 {[%clk 0:00:12]} 53... a1=Q {[%clk 0:00:06.8]} 54. Rxa1
{[%clk 0:00:12.3]} 54... Rxa1 {[%clk 0:00:06.5]} 0-1

[Event "*** Titled Tuesday Blitz"]
[Site "Chess.com"]
[Date "2020.04.28"]
[Round "3"]
[White "Beca95"]
[Black "ManuDavid2910"]
[Result "1-0"]
[WhiteElo "2877"]
[BlackElo "2636"]
[TimeControl "180+1"]
[EndTime "10:30:18 PDT"]
[Termination "Beca95 won by resignation"]

1. d4 {[%clk 0:03:00.9]} 1... Nf6 {[%clk 0:02:59.9]} 2. Nf3 {[%clk 0:03:00]}
2... e6 {[%clk 0:03:00.2]} 3. Bg5 {[%clk 0:02:58.5]} 3... d5 {[%clk 0:03:01.1]}
4. e3 {[%clk 0:02:56.7]} 4... c5 {[%clk 0:03:01.3]} 5. c3 {[%clk 0:02:56.8]}
5... Nc6 {[%clk 0:03:01]} 6. Nbd2 {[%clk 0:02:55.9]} 6... Bd6 {[%clk 0:03:01.2]}
7. Bd3 {[%clk 0:02:55.2]} 7... O-O {[%clk 0:03:01.5]} 8. Qe2 {[%clk 0:02:54.4]}
8... e5 {[%clk 0:03:01.8]} 9. dxc5 {[%clk 0:02:54]} 9... Bxc5 {[%clk 0:03:02.1]}
10. e4 {[%clk 0:02:54.2]} 10... d4 {[%clk 0:03:01.7]} 11. O-O {[%clk 0:02:34.9]}
11... h6 {[%clk 0:02:58.1]} 12. Bh4 {[%clk 0:02:33.2]} 12... Bb6 {[%clk
0:02:58.3]} 13. Nc4 {[%clk 0:02:30.9]} 13... Bc7 {[%clk 0:02:56.6]} 14. cxd4
{[%clk 0:02:29.8]} 14... exd4 {[%clk 0:02:52.8]} 15. e5 {[%clk 0:02:16.4]} 15...
Re8 {[%clk 0:02:48.6]} 16. Bxf6 {[%clk 0:02:11.2]} 16... gxf6 {[%clk 0:02:44.4]}
17. Qe4 {[%clk 0:02:11.3]} 17... f5 {[%clk 0:02:25.6]} 18. Qf4 {[%clk
0:02:10.2]} 18... Qf6 {[%clk 0:01:57.1]} 19. Rae1 {[%clk 0:01:59.1]} 19... Be6
{[%clk 0:01:45]} 20. Nd6 {[%clk 0:00:55.3]} 20... Bxd6 {[%clk 0:01:33.4]} 21.
exd6 {[%clk 0:00:56.2]} 21... Rad8 {[%clk 0:01:30.7]} 22. Bb5 {[%clk 0:00:53.3]}
22... Bd5 {[%clk 0:01:03.9]} 23. Bxc6 {[%clk 0:00:50.1]} 23... bxc6 {[%clk
0:00:57.1]} 24. Nxd4 {[%clk 0:00:48.8]} 24... Be4 {[%clk 0:00:51.6]} 25. d7
{[%clk 0:00:36.5]} 25... Re7 {[%clk 0:00:19.3]} 26. Nxf5 {[%clk 0:00:34.5]}
26... Bxf5 {[%clk 0:00:13]} 27. Rxe7 {[%clk 0:00:33.6]} 27... Qxe7 {[%clk
0:00:13.9]} 28. Qxf5 {[%clk 0:00:33.5]} 28... Qxd7 {[%clk 0:00:14.6]} 29. Qf4
{[%clk 0:00:29.4]} 29... Qd2 {[%clk 0:00:13.3]} 30. Qg4+ {[%clk 0:00:28.1]}
30... Kh8 {[%clk 0:00:13.5]} 31. b3 {[%clk 0:00:28.2]} 31... Qxa2 {[%clk
0:00:11.8]} 32. Qf3 {[%clk 0:00:24.8]} 32... Kg7 {[%clk 0:00:09.8]} 33. Qc3+
{[%clk 0:00:23]} 33... Kg8 {[%clk 0:00:09.1]} 34. h4 {[%clk 0:00:23.3]} 34...
Rd6 {[%clk 0:00:07.3]} 35. h5 {[%clk 0:00:21.7]} 35... Qd2 {[%clk 0:00:05.8]}
36. Qe5 {[%clk 0:00:21.5]} 36... Qd4 {[%clk 0:00:05.1]} 37. Qg3+ {[%clk
0:00:20.8]} 37... Kf8 {[%clk 0:00:05.1]} 38. Re1 {[%clk 0:00:20.6]} 38... Qf6
{[%clk 0:00:05.2]} 39. Qe3 {[%clk 0:00:20.1]} 39... Qg5 {[%clk 0:00:04.5]} 40.
Qxa7 {[%clk 0:00:19.3]} 40... Rd2 {[%clk 0:00:02.2]} 41. Qe3 {[%clk 0:00:15.3]}
41... Kg8 {[%clk 0:00:03.1]} 42. g3 {[%clk 0:00:12.4]} 42... Rd5 {[%clk
0:00:02.7]} 43. Qc3 {[%clk 0:00:10.8]} 43... Rd8 {[%clk 0:00:01.4]} 44. Qxc6
{[%clk 0:00:10.4]} 44... Qxh5 {[%clk 0:00:01.5]} 45. Qc7 {[%clk 0:00:10.8]}
45... Rf8 {[%clk 0:00:01.7]} 46. b4 {[%clk 0:00:10.7]} 46... Qg6 {[%clk
0:00:02.6]} 47. Qc5 {[%clk 0:00:10.5]} 47... Qd3 {[%clk 0:00:03.2]} 48. b5
{[%clk 0:00:10.3]} 48... Qg6 {[%clk 0:00:04.1]} 49. b6 {[%clk 0:00:10]} 49...
Rb8 {[%clk 0:00:04.9]} 50. b7 {[%clk 0:00:06.4]} 50... Qa6 {[%clk 0:00:05.1]}
51. Rb1 {[%clk 0:00:05.3]} 51... Qg6 {[%clk 0:00:05.3]} 52. Qb5 {[%clk
0:00:04.1]} 52... Kh7 {[%clk 0:00:04.1]} 53. Rb4 {[%clk 0:00:04.2]} 53... h5
{[%clk 0:00:04]} 54. Qc4 {[%clk 0:00:04.2]} 54... Re8 {[%clk 0:00:04]} 55. Qc3
{[%clk 0:00:03.8]} 55... Re1+ {[%clk 0:00:03.9]} 56. Qxe1 {[%clk 0:00:03.7]}
56... Qe6 {[%clk 0:00:04.8]} 1-0

[Event "*** Titled Tuesday Blitz"]
[Site "Chess.com"]
[Date "2020.04.28"]
[Round "3"]
[White "Chepaschess"]
[Black "Sanan_Sjugirov"]
[Result "0-1"]
[WhiteElo "2627"]
[BlackElo "2863"]
[TimeControl "180+1"]
[EndTime "10:30:18 PDT"]
[Termination "Sanan_Sjugirov won by resignation"]

1. d4 {[%clk 0:03:00.9]} 1... d5 {[%clk 0:02:59.7]} 2. c4 {[%clk 0:03:00.3]}
2... e6 {[%clk 0:03:00]} 3. Nf3 {[%clk 0:03:00.6]} 3... c6 {[%clk 0:03:00.1]} 4.
Qc2 {[%clk 0:02:59.1]} 4... Nf6 {[%clk 0:02:59.7]} 5. g3 {[%clk 0:02:54.9]} 5...
dxc4 {[%clk 0:02:59.6]} 6. Qxc4 {[%clk 0:02:51]} 6... b5 {[%clk 0:03:00]} 7. Qb3
{[%clk 0:02:49.9]} 7... Bb7 {[%clk 0:02:59.8]} 8. Bg2 {[%clk 0:02:50.6]} 8...
Nbd7 {[%clk 0:02:58.8]} 9. O-O {[%clk 0:02:48.8]} 9... Be7 {[%clk 0:02:53.8]}
10. Bg5 {[%clk 0:02:39.9]} 10... O-O {[%clk 0:02:51.4]} 11. Ne5 {[%clk
0:02:39.7]} 11... Nxe5 {[%clk 0:02:45.6]} 12. dxe5 {[%clk 0:02:40.6]} 12... Nd5
{[%clk 0:02:44.3]} 13. Bxe7 {[%clk 0:02:38.1]} 13... Qxe7 {[%clk 0:02:45.2]} 14.
Nd2 {[%clk 0:02:25.7]} 14... Qc7 {[%clk 0:02:38.8]} 15. Ne4 {[%clk 0:02:17.8]}
15... Qxe5 {[%clk 0:02:33.3]} 16. Nc5 {[%clk 0:02:17.7]} 16... Qc7 {[%clk
0:02:33.3]} 17. Rac1 {[%clk 0:02:15.7]} 17... Rad8 {[%clk 0:02:21.8]} 18. Rfd1
{[%clk 0:02:08.5]} 18... Bc8 {[%clk 0:02:13]} 19. h4 {[%clk 0:02:04.3]} 19... h6
{[%clk 0:02:06.3]} 20. a3 {[%clk 0:02:01.4]} 20... Ne7 {[%clk 0:01:20.4]} 21.
Re1 {[%clk 0:01:48.7]} 21... e5 {[%clk 0:01:14.3]} 22. e4 {[%clk 0:01:29.3]}
22... Rd4 {[%clk 0:01:08.4]} 23. Qc3 {[%clk 0:01:25.6]} 23... Rfd8 {[%clk
0:01:06.7]} 24. b3 {[%clk 0:01:20]} 24... Ng6 {[%clk 0:00:57.8]} 25. Re3 {[%clk
0:01:10]} 25... Nf8 {[%clk 0:00:56.4]} 26. b4 {[%clk 0:00:58.3]} 26... Ne6
{[%clk 0:00:53.5]} 27. Nb3 {[%clk 0:00:31.7]} 27... Rc4 {[%clk 0:00:51.9]} 28.
Qb2 {[%clk 0:00:32]} 28... Rxc1+ {[%clk 0:00:46.2]} 29. Qxc1 {[%clk 0:00:32.1]}
29... Nd4 {[%clk 0:00:45.1]} 30. Nc5 {[%clk 0:00:31.3]} 30... a5 {[%clk
0:00:41.4]} 31. Kh2 {[%clk 0:00:30.4]} 31... a4 {[%clk 0:00:37.4]} 32. Bf1
{[%clk 0:00:27.7]} 32... Qe7 {[%clk 0:00:35.9]} 33. Rc3 {[%clk 0:00:26.8]} 33...
Bg4 {[%clk 0:00:35.1]} 34. Qe3 {[%clk 0:00:20]} 34... Qf6 {[%clk 0:00:34]} 35.
Bg2 {[%clk 0:00:18.3]} 35... g5 {[%clk 0:00:27]} 36. f3 {[%clk 0:00:17.8]} 36...
Bc8 {[%clk 0:00:26.4]} 37. h5 {[%clk 0:00:16.7]} 37... Kg7 {[%clk 0:00:25.9]}
38. Nd3 {[%clk 0:00:15.3]} 38... g4 {[%clk 0:00:15.8]} 39. f4 {[%clk 0:00:14.8]}
39... exf4 {[%clk 0:00:16.4]} 40. Nxf4 {[%clk 0:00:11.6]} 40... Ne6 {[%clk
0:00:08.1]} 41. e5 {[%clk 0:00:09.4]} 41... Qg5 {[%clk 0:00:07.4]} 42. Nxe6+
{[%clk 0:00:09.6]} 42... Bxe6 {[%clk 0:00:08.3]} 43. Qxg5+ {[%clk 0:00:10]}
43... hxg5 {[%clk 0:00:09.2]} 44. Bxc6 {[%clk 0:00:10.2]} 44... Rd2+ {[%clk
0:00:09.4]} 45. Kg1 {[%clk 0:00:10.4]} 45... Bc4 {[%clk 0:00:09.6]} 46. Be4
{[%clk 0:00:06.7]} 46... Kh6 {[%clk 0:00:09]} 47. Bf5 {[%clk 0:00:06.5]} 47...
Kxh5 {[%clk 0:00:08.9]} 48. Re3 {[%clk 0:00:06.4]} 48... Rd1+ {[%clk 0:00:07.3]}
49. Kg2 {[%clk 0:00:06.1]} 49... Rd2+ {[%clk 0:00:07.6]} 50. Kg1 {[%clk
0:00:06.5]} 50... Rd4 {[%clk 0:00:05.8]} 51. Re4 {[%clk 0:00:04.2]} 51... Rd1+
{[%clk 0:00:05.2]} 52. Kg2 {[%clk 0:00:04.6]} 52... Bd5 {[%clk 0:00:04.6]} 53.
Bxg4+ {[%clk 0:00:04.4]} 53... Kg6 {[%clk 0:00:05]} 54. Bf3 {[%clk 0:00:04.8]}
54... Rd2+ {[%clk 0:00:03.8]} 0-1

[Event "*** Titled Tuesday Blitz"]
[Site "Chess.com"]
[Date "2020.04.28"]
[Round "3"]
[White "GM_LOADING"]
[Black "korkmaz16"]
[Result "1/2-1/2"]
[WhiteElo "2598"]
[BlackElo "2259"]
[TimeControl "180+1"]
[EndTime "10:30:18 PDT"]
[Termination "Game drawn - insufficient material"]

1. e4 {[%clk 0:03:00.9]} 1... d5 {[%clk 0:02:51.8]} 2. exd5 {[%clk 0:03:00.7]}
2... Nf6 {[%clk 0:02:51.8]} 3. d4 {[%clk 0:03:00]} 3... Bg4 {[%clk 0:02:51.5]}
4. Be2 {[%clk 0:03:00]} 4... Bxe2 {[%clk 0:02:49.6]} 5. Qxe2 {[%clk 0:02:59.8]}
5... Qxd5 {[%clk 0:02:49.6]} 6. Nf3 {[%clk 0:03:00.3]} 6... Nc6 {[%clk
0:02:49.3]} 7. O-O {[%clk 0:02:57.7]} 7... O-O-O {[%clk 0:02:48.2]} 8. c3 {[%clk
0:02:54.8]} 8... e6 {[%clk 0:02:47.4]} 9. Bg5 {[%clk 0:02:52.1]} 9... Bd6 {[%clk
0:02:46.2]} 10. Nbd2 {[%clk 0:02:47.3]} 10... h6 {[%clk 0:02:39.2]} 11. Bxf6
{[%clk 0:02:31.8]} 11... gxf6 {[%clk 0:02:39]} 12. Rad1 {[%clk 0:02:27.7]} 12...
Qh5 {[%clk 0:02:22.1]} 13. Ne4 {[%clk 0:02:19.8]} 13... Bxh2+ {[%clk 0:02:19.3]}
14. Kh1 {[%clk 0:02:16.6]} 14... Be5+ {[%clk 0:02:05.3]} 15. Kg1 {[%clk
0:02:15.1]} 15... Bh2+ {[%clk 0:01:48.3]} 16. Kh1 {[%clk 0:02:14.9]} 16... Bf4+
{[%clk 0:01:35.9]} 17. Kg1 {[%clk 0:02:14.7]} 17... f5 {[%clk 0:01:32]} 18. Ng3
{[%clk 0:02:10.5]} 18... Bxg3 {[%clk 0:01:28.4]} 19. fxg3 {[%clk 0:02:11.4]}
19... Rhg8 {[%clk 0:01:27.8]} 20. Qf2 {[%clk 0:01:24.3]} 20... Qg4 {[%clk
0:01:14.2]} 21. d5 {[%clk 0:01:23.6]} 21... exd5 {[%clk 0:01:09.6]} 22. Nh4
{[%clk 0:01:23]} 22... Qxg3 {[%clk 0:00:43.8]} 23. Qxg3 {[%clk 0:01:20.2]} 23...
Rxg3 {[%clk 0:00:43]} 24. Nxf5 {[%clk 0:01:20.7]} 24... Rg6 {[%clk 0:00:42.2]}
25. Rf2 {[%clk 0:01:17.4]} 25... h5 {[%clk 0:00:30.7]} 26. Rfd2 {[%clk
0:01:04.7]} 26... d4 {[%clk 0:00:27.4]} 27. cxd4 {[%clk 0:01:02.2]} 27... Rd5
{[%clk 0:00:26.1]} 28. Rf2 {[%clk 0:00:59.9]} 28... Kd8 {[%clk 0:00:18.4]} 29.
Re1 {[%clk 0:00:41.5]} 29... Rf6 {[%clk 0:00:16.9]} 30. Ref1 {[%clk 0:00:38.5]}
30... Nxd4 {[%clk 0:00:15.8]} 31. Ne3 {[%clk 0:00:24.8]} 31... Rxf2 {[%clk
0:00:15.3]} 32. Rxf2 {[%clk 0:00:25.2]} 32... Re5 {[%clk 0:00:15.4]} 33. Nc4
{[%clk 0:00:24]} 33... Re1+ {[%clk 0:00:15.1]} 34. Kh2 {[%clk 0:00:23.9]} 34...
f5 {[%clk 0:00:15.7]} 35. b4 {[%clk 0:00:20.7]} 35... Re2 {[%clk 0:00:14]} 36.
Rf4 {[%clk 0:00:20.5]} 36... Ne6 {[%clk 0:00:11.6]} 37. Rxf5 {[%clk 0:00:20.5]}
37... h4 {[%clk 0:00:12.2]} 38. Ne5 {[%clk 0:00:17.6]} 38... Nf4 {[%clk
0:00:10]} 39. Rg5 {[%clk 0:00:16.1]} 39... Nxg2 {[%clk 0:00:08.8]} 40. Kh3
{[%clk 0:00:10.8]} 40... Nf4+ {[%clk 0:00:08.4]} 41. Kxh4 {[%clk 0:00:11.2]}
41... Ne6 {[%clk 0:00:08.9]} 42. Rg8+ {[%clk 0:00:11.1]} 42... Ke7 {[%clk
0:00:09]} 43. Rb8 {[%clk 0:00:11.5]} 43... Rxe5 {[%clk 0:00:08.3]} 44. Rxb7
{[%clk 0:00:11.9]} 44... a6 {[%clk 0:00:08.7]} 45. a4 {[%clk 0:00:11.4]} 45...
Kd6 {[%clk 0:00:09.6]} 46. a5 {[%clk 0:00:11.7]} 46... Re4+ {[%clk 0:00:10.5]}
47. Kg3 {[%clk 0:00:10.9]} 47... Nd4 {[%clk 0:00:11.4]} 48. Ra7 {[%clk
0:00:09.3]} 48... Nc6 {[%clk 0:00:10.8]} 49. Rxa6 {[%clk 0:00:08.6]} 49... Rxb4
{[%clk 0:00:10.5]} 50. Kf3 {[%clk 0:00:09.2]} 50... Rb3+ {[%clk 0:00:11.4]} 51.
Ke4 {[%clk 0:00:09.3]} 51... Kc5 {[%clk 0:00:12.3]} 52. Ra8 {[%clk 0:00:08.9]}
52... Rb5 {[%clk 0:00:12.3]} 53. a6 {[%clk 0:00:09]} 53... Ra5 {[%clk
0:00:13.2]} 54. Kf5 {[%clk 0:00:08.7]} 54... Kb6+ {[%clk 0:00:13.8]} 55. Ke6
{[%clk 0:00:09.2]} 55... Rxa6 {[%clk 0:00:14.3]} 56. Rc8 {[%clk 0:00:09.7]}
56... Kb7 {[%clk 0:00:14.5]} 57. Kd7 {[%clk 0:00:09.3]} 57... Na7 {[%clk
0:00:15.4]} 58. Rxc7+ {[%clk 0:00:09]} 58... Kb6 {[%clk 0:00:16.3]} 59. Rc1
{[%clk 0:00:06.7]} 59... Nb5 {[%clk 0:00:17.1]} 60. Rc6+ {[%clk 0:00:06.6]}
60... Ka5 {[%clk 0:00:18]} 61. Rxa6+ {[%clk 0:00:07.5]} 61... Kxa6 {[%clk
0:00:18.9]} 1/2-1/2

[Event "*** Titled Tuesday Blitz"]
[Site "Chess.com"]
[Date "2020.04.28"]
[Round "3"]
[White "morfius"]
[Black "queen_iryna"]
[Result "1/2-1/2"]
[WhiteElo "2596"]
[BlackElo "2277"]
[TimeControl "180+1"]
[EndTime "10:30:20 PDT"]
[Termination "Game drawn by repetition"]

1. e4 {[%clk 0:03:00.1]} 1... d6 {[%clk 0:02:58.7]} 2. d4 {[%clk 0:02:59.6]}
2... Nf6 {[%clk 0:02:57.8]} 3. Nc3 {[%clk 0:02:59.7]} 3... e5 {[%clk 0:02:58]}
4. Nf3 {[%clk 0:02:58.8]} 4... Nbd7 {[%clk 0:02:57.3]} 5. Bc4 {[%clk 0:02:57.9]}
5... Be7 {[%clk 0:02:56.8]} 6. O-O {[%clk 0:02:56.2]} 6... O-O {[%clk
0:02:56.3]} 7. Re1 {[%clk 0:02:55.9]} 7... c6 {[%clk 0:02:55.5]} 8. a4 {[%clk
0:02:55.9]} 8... h6 {[%clk 0:02:55]} 9. h3 {[%clk 0:02:48.8]} 9... Re8 {[%clk
0:02:53.1]} 10. a5 {[%clk 0:02:44]} 10... Bf8 {[%clk 0:02:48.5]} 11. d5 {[%clk
0:02:43.8]} 11... b5 {[%clk 0:02:48.2]} 12. Bf1 {[%clk 0:02:32.7]} 12... b4
{[%clk 0:02:24.6]} 13. Nb1 {[%clk 0:02:17.4]} 13... cxd5 {[%clk 0:01:58]} 14.
exd5 {[%clk 0:02:17.8]} 14... Nc5 {[%clk 0:01:53.7]} 15. c4 {[%clk 0:02:12.3]}
15... bxc3 {[%clk 0:01:52.6]} 16. Nxc3 {[%clk 0:02:12.9]} 16... a6 {[%clk
0:01:45.3]} 17. b4 {[%clk 0:02:09.6]} 17... Ncd7 {[%clk 0:01:41.7]} 18. b5
{[%clk 0:01:50.7]} 18... axb5 {[%clk 0:01:39.7]} 19. Bxb5 {[%clk 0:01:51.4]}
19... Ba6 {[%clk 0:01:38.6]} 20. Bc6 {[%clk 0:01:51.6]} 20... Rb8 {[%clk
0:01:38.5]} 21. Ba3 {[%clk 0:01:47.5]} 21... Qc7 {[%clk 0:01:28.9]} 22. Qa4
{[%clk 0:01:46.6]} 22... Rec8 {[%clk 0:01:27.2]} 23. Rab1 {[%clk 0:01:37.6]}
23... Rxb1 {[%clk 0:01:21.7]} 24. Rxb1 {[%clk 0:01:38]} 24... Nb8 {[%clk
0:01:19]} 25. Nb5 {[%clk 0:01:27.2]} 25... Bxb5 {[%clk 0:01:14.2]} 26. Bxb5
{[%clk 0:01:27.7]} 26... Nxd5 {[%clk 0:01:11]} 27. Rc1 {[%clk 0:01:17]} 27...
Qb7 {[%clk 0:00:53.6]} 28. Rxc8 {[%clk 0:01:05.7]} 28... Qxc8 {[%clk 0:00:54.5]}
29. Bc4 {[%clk 0:00:53]} 29... Nc7 {[%clk 0:00:40.7]} 30. Ba2 {[%clk 0:00:34.6]}
30... Ne6 {[%clk 0:00:38.3]} 31. Qb5 {[%clk 0:00:33.1]} 31... Na6 {[%clk
0:00:33.4]} 32. Bc4 {[%clk 0:00:30.4]} 32... Nac7 {[%clk 0:00:24.5]} 33. Qc6
{[%clk 0:00:27.5]} 33... Qa8 {[%clk 0:00:22.6]} 34. Qxa8 {[%clk 0:00:19.4]}
34... Nxa8 {[%clk 0:00:23.5]} 35. Bd5 {[%clk 0:00:20]} 35... Nec7 {[%clk
0:00:21.5]} 36. Bb7 {[%clk 0:00:20.4]} 36... f6 {[%clk 0:00:18.9]} 37. Nd2
{[%clk 0:00:20]} 37... d5 {[%clk 0:00:18.8]} 38. Bxf8 {[%clk 0:00:19.2]} 38...
Kxf8 {[%clk 0:00:19.7]} 39. Nb3 {[%clk 0:00:19.1]} 39... Ke7 {[%clk 0:00:19.2]}
40. f4 {[%clk 0:00:17.9]} 40... Kd6 {[%clk 0:00:19.2]} 41. fxe5+ {[%clk
0:00:18.6]} 41... fxe5 {[%clk 0:00:18.9]} 42. Kf2 {[%clk 0:00:19.5]} 42... e4
{[%clk 0:00:13.5]} 43. Nd4 {[%clk 0:00:17.9]} 43... Kc5 {[%clk 0:00:13.2]} 44.
Ke3 {[%clk 0:00:18.5]} 44... Kb4 {[%clk 0:00:12.5]} 45. a6 {[%clk 0:00:18.7]}
45... Ka5 {[%clk 0:00:12.2]} 46. Nf5 {[%clk 0:00:16.4]} 46... g6 {[%clk
0:00:10.6]} 47. Nxh6 {[%clk 0:00:16.4]} 47... Nb6 {[%clk 0:00:10.8]} 48. a7
{[%clk 0:00:13.9]} 48... Nba8 {[%clk 0:00:10.7]} 49. Ng4 {[%clk 0:00:12.1]}
49... Kb6 {[%clk 0:00:10.9]} 50. Bc8 {[%clk 0:00:11]} 50... Kxa7 {[%clk
0:00:10.5]} 51. Ne5 {[%clk 0:00:11.7]} 51... Nb6 {[%clk 0:00:10.2]} 52. Bg4
{[%clk 0:00:11.8]} 52... Kb7 {[%clk 0:00:09.5]} 53. Nxg6 {[%clk 0:00:11.7]}
53... Kc6 {[%clk 0:00:09.4]} 54. Ne5+ {[%clk 0:00:11.6]} 54... Kd6 {[%clk
0:00:09.4]} 55. Nf7+ {[%clk 0:00:11.6]} 55... Ke7 {[%clk 0:00:07.8]} 56. Nh6
{[%clk 0:00:12.2]} 56... Kf6 {[%clk 0:00:06.6]} 57. h4 {[%clk 0:00:11.5]} 57...
Ke5 {[%clk 0:00:06.4]} 58. Nf7+ {[%clk 0:00:11.6]} 58... Kf6 {[%clk 0:00:06.6]}
59. Ng5 {[%clk 0:00:11.8]} 59... Ke5 {[%clk 0:00:06.3]} 60. Nf7+ {[%clk
0:00:11.6]} 60... Kf6 {[%clk 0:00:06.6]} 61. Nd6 {[%clk 0:00:12.3]} 61... Ke5
{[%clk 0:00:06.3]} 62. Nf7+ {[%clk 0:00:11.9]} 1/2-1/2